fUSD/lending_fUSD_20250209
["ID","MTS","AMOUNT","RATE_DAILY","PERIOD"]
[352382797,1739069446984,-500.0,0.00010273,2]
[352382798,1739069446994,-500.0,0.00010273,2]
[352382799,1739069447003,-500.0,0.00010273,2]
[352382800,1739069447012,-500.0,0.00010273,2]
[352382801,1739069447022,-500.0,0.00010273,2]
[352382802,1739069447031,-500.0,0.00010273,2]
[352382803,1739069447041,-500.0,0.00010273,2]
[352382804,1739069447051,-500.0,0.00010273,2]
[352382805,1739069447060,-500.0,0.00010273,2]
[352382806,1739069447070,-500.0,0.00010273,2]
[352382807,1739069447080,-500.0,0.00010273,2]
[352382808,1739069447089,-500.0,0.00010273,2]
[352382809,1739069447098,-579.76,0.00010273,2]
[352382810,1739069447108,-500.0,0.00010273,2]
[352382811,1739069447118,-500.0,0.00010273,2]
[352382812,1739069447127,-500.0,0.00010273,2]
[352382813,1739069447137,-576.76,0.00010273,2]
[352382814,1739069447146,-500.0,0.00010273,2]
[352382815,1739069447156,-585.88,0.00010273,2]
[352382816,1739069447166,-651.15,0.00010273,2]
[352382817,1739069447175,-500.0,0.00010273,2]
[352382818,1739069447185,-500.0,0.00010273,2]
[352382819,1739069447195,-500.0,0.00010273,2]
[352382820,1739069447204,-500.0,0.00010273,2]
[352382821,1739069447214,-500.0,0.00010273,2]
[352382822,1739069447224,-500.0,0.00010273,2]
[352382823,1739069447236,-500.0,0.00010273,2]
[352382824,1739069447246,-792.41,0.00010273,2]
[352382825,1739069447256,-500.0,0.00010273,2]
[352382826,1739069447266,-948.02,0.00010273,2]
[352382827,1739069447276,-500.0,0.00010273,2]
[352382828,1739069447285,-816.74,0.00010273,2]
[352382829,1739069447294,-500.0,0.00010273,2]
[352382830,1739069447304,-500.0,0.00010273,2]
[352382831,1739069447315,-500.0,0.00010273,2]
[352382832,1739069447325,-609.3699596,0.00010273,2]
[352382833,1739069447335,-701.32,0.00010299,2]
[352382834,1739069447345,-3232.06896632,0.00010301,2]
[352382835,1739069449167,-643.19706116,8.962e-05,2]
[352382836,1739069449177,-281.80293884,0.00010125,2]
[352382837,1739069449190,-240.93916654,0.00010125,2]
[352382838,1739069449200,-1342.10822628,0.00010301,2]
[352382839,1739069449210,-150.0,0.00010305,2]
[352382840,1739069449220,-486.48628418,0.00010332,2]
[352382841,1739069449242,-301.69371582,0.00010332,2]
[352382842,1739069449253,-995.5,0.00010332,2]
[352382843,1739069449263,-754.344585,0.00010332,2]
[352382844,1739069449274,-596.72846136,0.00010332,2]
[352382845,1739069449285,-837.418506,0.00010332,2]
[352382846,1739069449295,-571.5,0.00010332,2]
[352382847,1739069449305,-1439.98,0.00010332,2]
[352382848,1739069449316,-1335.02,0.00010332,2]
[352382849,1739069449328,-559.11,0.00010332,2]
[352382850,1739069449338,-330.7047318,0.00010332,2]
[352382851,1739069449351,-763.0252682,0.00010332,2]
[352382852,1739069449362,-803.53,0.00010332,2]
[352382853,1739069449371,-1890.81,0.00010332,2]
[352382854,1739069449381,-1559.98,0.00010332,2]
[352382855,1739069449391,-967.4,0.00010332,2]
[352382856,1739069449401,-1029.95,0.00010332,2]
[352382857,1739069449411,-920.97,0.00010332,2]
[352382858,1739069449421,-1504.3347318,0.00010332,2]
[352382859,1739069449514,-252.90102083,0.00010332,2]
[352382860,1739069449550,-110.21424737,0.00010332,2]
[352382861,1739069449561,-789.25,0.00010332,2]
[352382862,1739069449571,-3744.99,0.00010332,2]
[352382863,1739069449580,-1560.02,0.00010332,2]
[352382864,1739069449590,-500.0,0.00010332,2]
[352382865,1739069449600,-736.32,0.00010332,2]
[352382866,1739069449610,-2494.58,0.00010332,2]
[352382867,1739069449621,-947.08,0.00010332,2]
[352382868,1739069449631,-1906.86,0.00010332,2]
[352382869,1739069449642,-1559.78,0.00010332,2]
[352382870,1739069449653,-3359.76,0.00010332,2]
[352382871,1739069449662,-1389.48,0.00010332,2]
[352382872,1739069449673,-1064.16,0.00010332,2]
[352382873,1739069449682,-630.3,0.00010332,2]
[352382874,1739069449693,-999.14,0.00010332,2]
[352382875,1739069449703,-500.0,0.00010332,2]
[352382876,1739069449712,-1578.2,0.00010332,2]
[352382877,1739069449722,-500.0,0.00010332,2]
[352382878,1739069449732,-1129.0,0.00010332,2]
[352382879,1739069449741,-1301.09,0.00010332,2]
[352382880,1739069449751,-1291.18,0.00010332,2]
[352382881,1739069449761,-1876.52,0.00010332,2]
[352382882,1739069449771,-1866.23,0.00010332,2]
[352382883,1739069449781,-2220.41,0.00010332,2]
[352382884,1739069449791,-1564.75,0.00010332,2]
[352382885,1739069449801,-926.11,0.00010332,2]
[352382886,1739069449810,-1329.14,0.00010332,2]
[352382887,1739069449820,-2507.15,0.00010332,2]
[352382888,1739069449830,-587.83,0.00010332,2]
[352382889,1739069449839,-853.77,0.00010332,2]
[352382890,1739069449849,-1628.99,0.00010332,2]
[352382891,1739069449859,-500.0,0.00010332,2]
[352382892,1739069449868,-500.0,0.00010332,2]
[352382893,1739069449878,-954.02,0.00010332,2]
[352382894,1739069449889,-938.82,0.00010332,2]
[352382895,1739069449899,-709.35575262,0.00010332,2]
[352382896,1739069449911,-712.33,0.00010332,2]
[352382897,1739069450405,-151.66424738,0.00010332,2]
[352382898,1739069450415,-500.0,0.00010332,2]
[352382899,1739069450425,-3.33575262,0.00010332,2]
[352382900,1739069450455,-1802.46424738,0.00010332,2]
[352382901,1739069450465,-774.74,0.00010332,2]
[352382902,1739069450474,-611.09,0.00010332,2]
[352382903,1739069450483,-500.0,0.00010332,2]
[352382904,1739069450492,-150.0,0.0001036,2]
[352382905,1739069450501,-150.0,0.00010362,2]
[352382906,1739069450510,-150.0,0.00010394,2]
[352382907,1739069450520,-500.0,0.00010399,2]
[352382908,1739069450530,-500.0,0.00010399,2]
[352382909,1739069450539,-812.04,0.00010399,2]
[352382910,1739069450548,-500.0,0.00010399,2]
[352382911,1739069450558,-500.0,0.00010399,2]
[352382912,1739069450568,-650.98,0.00010399,2]
[352382913,1739069450577,-725.66,0.00010399,2]
[352382914,1739069450588,-500.0,0.00010399,2]
[352382915,1739069450597,-626.3,0.00010399,2]
[352382916,1739069450606,-500.0,0.00010399,2]
[352382917,1739069450616,-500.0,0.00010399,2]
[352382918,1739069450625,-686.17,0.00010399,2]
[352382919,1739069450634,-751.94,0.00010399,2]
[352382920,1739069450643,-500.0,0.00010399,2]
[352382921,1739069450652,-809.56,0.00010399,2]
[352382922,1739069450661,-500.0,0.00010399,2]
[352382923,1739069450670,-500.0,0.00010399,2]
[352382924,1739069450680,-500.0,0.00010399,2]
[352382925,1739069450689,-850.73,0.00010399,2]
[352382926,1739069450698,-500.0,0.00010399,2]
[352382927,1739069450707,-500.0,0.00010399,2]
[352382928,1739069450716,-810.94,0.00010399,2]
[352382929,1739069450725,-500.0,0.00010399,2]
[352382930,1739069450735,-500.0,0.00010399,2]
[352382931,1739069450743,-819.57,0.00010399,2]
[352382932,1739069450753,-556.76,0.00010399,2]
[352382933,1739069450763,-881.6,0.00010399,2]
[352382934,1739069450774,-822.99,0.00010399,2]
[352382935,1739069450783,-720.56,0.00010399,2]
[352382936,1739069450792,-342.76547637,0.00010399,2]
[352382937,1739069450801,-695.07,0.00010399,2]
[352382938,1739069450810,-788.71,0.00010399,2]
[352382939,1739069450819,-793.3,0.00010399,2]
[352382940,1739069450829,-500.0,0.00010399,2]
[352382941,1739069450838,-500.0,0.00010399,2]
[352382942,1739069450847,-775.16,0.00010399,2]
[352382943,1739069450856,-760.1,0.00010399,2]
[352382944,1739069450866,-646.22,0.00010399,2]
[352382945,1739069450876,-500.0,0.00010399,2]
[352382946,1739069450886,-500.0,0.00010399,2]
[352382947,1739069450895,-1572.53,0.00010399,2]
[352382948,1739069450904,-1155.73,0.00010399,2]
[352382949,1739069450913,-858.34,0.00010399,2]
[352382950,1739069450922,-500.0,0.00010399,2]
[352382951,1739069450936,-500.0,0.00010399,2]
[352382952,1739069450946,-1151.5,0.00010399,2]
[352382953,1739069450955,-782.41,0.00010399,2]
[352382954,1739069450965,-1084.12,0.00010399,2]
[352382955,1739069450975,-500.0,0.00010399,2]
[352382956,1739069450985,-667.59,0.00010399,2]
[352382957,1739069450994,-701.32,0.00010399,2]
[352382958,1739069451003,-2395.35,0.00010399,2]
[352382959,1739069451012,-608.93,0.00010399,2]
[352382960,1739069451022,-1744.39,0.00010399,2]
[352382961,1739069451031,-713.37,0.00010399,2]
[352382962,1739069451040,-1920.7,0.00010399,2]
[352382963,1739069451050,-1775.02,0.00010399,2]
[352382964,1739069451060,-500.0,0.00010399,2]
[352382965,1739069451071,-998.71,0.00010399,2]
[352382966,1739069451081,-674.24,0.00010399,2]
[352382967,1739069451091,-249.48200895,0.00010399,2]
[352382968,1739069451100,-1286.34,0.00010399,2]
[352382969,1739069451109,-785.89,0.00010399,2]
[352382970,1739069451118,-1431.71,0.00010399,2]
[352382971,1739069451127,-2291.65,0.00010399,2]
[352382972,1739069451136,-500.0,0.00010399,2]
[352382973,1739069451148,-531.34,0.00010399,2]
[352382974,1739069451159,-984.4,0.00010399,2]
[352382975,1739069451170,-918.47,0.00010399,2]
[352382976,1739069451182,-500.0,0.00010399,2]
[352382977,1739069451191,-500.0,0.00010399,2]
[352382978,1739069451201,-1681.15,0.00010399,2]
[352382979,1739069451210,-586.82,0.00010399,2]
[352382980,1739069451220,-652.27,0.00010399,2]
[352382981,1739069451230,-906.36,0.00010399,2]
[352382982,1739069451245,-2072.47,0.00010399,2]
[352382983,1739069451254,-545.48,0.00010399,2]
[352382984,1739069451264,-852.61,0.00010399,2]
[352382985,1739069451274,-289.16,0.00010399,2]
[352382986,1739069451285,-500.0,0.00010399,2]
[352382987,1739069451294,-1204.52,0.00010399,2]
[352382988,1739069451304,-581.58,0.00010399,2]
[352382989,1739069451314,-500.0,0.00010399,2]
[352382990,1739069451323,-1195.82,0.00010399,2]
[352382991,1739069451331,-500.0,0.00010399,2]
[352382992,1739069451340,-1261.96,0.00010399,2]
[352382993,1739069451349,-1407.94,0.00010399,2]
[352382994,1739069451358,-885.46,0.00010399,2]
[352382995,1739069451367,-2220.58,0.000104,2]
[352382996,1739069451376,-4677.96,0.000104,2]
[352382997,1739069451385,-1113.07,0.000104,2]
[352382998,1739069451394,-1207.41,0.000104,2]
[352382999,1739069451404,-1237.76,0.000104,2]
[352383000,1739069451412,-701.32,0.000104,2]
[352383001,1739069451421,-2295.98,0.000104,2]
[352383002,1739069451430,-918.0,0.000104,2]
[352383003,1739069451439,-974.27,0.000104,2]
[352383004,1739069451448,-1487.4,0.000104,2]
[352383005,1739069451457,-916.22265707,0.000104,2]
[352383006,1739069451466,-1078.29,0.000104,2]
[352383007,1739069451475,-1542.41,0.000104,2]
[352383008,1739069451484,-1875.97,0.000104,2]
[352383009,1739069451493,-152.41,0.00010401,2]
[352383010,1739069451502,-378.56,0.00010401,2]
[352383011,1739069451511,-150.0,0.00010403,2]
[352383012,1739069451521,-587.0,0.00010408,2]
[352383013,1739069451530,-500.0,0.0001041,2]
[352383014,1739069451539,-616.19181391,0.0001041,2]
[352383015,1739069451548,-500.0,0.0001041,2]
[352383016,1739069451557,-488.61407372,0.0001041,2]
[352383017,1739069451565,-500.0,0.0001041,2]
[352383018,1739069451574,-500.0,0.0001041,2]
[352383019,1739069451583,-500.0,0.0001041,2]
[352383020,1739069451592,-393.98941778,0.0001041,2]
[352383021,1739069451601,-500.0,0.0001041,2]
[352383022,1739069451610,-500.0,0.0001041,2]
[352383023,1739069451618,-500.0,0.0001041,2]
[352383024,1739069451627,-500.0,0.0001041,2]
[352383025,1739069451636,-500.0,0.0001041,2]
[352383026,1739069451645,-500.0,0.0001041,2]
[352383027,1739069451654,-500.0,0.0001041,2]
[352383028,1739069451664,-500.0,0.0001041,2]
[352383029,1739069451672,-500.0,0.0001041,2]
[352383030,1739069451681,-288.03968959,0.0001041,2]
[352383031,1739069451690,-500.0,0.0001041,2]
[352383032,1739069451699,-649.8711714,0.0001041,2]
[352383033,1739069451708,-500.0,0.0001041,2]
[352383034,1739069451718,-505.18117299,0.0001041,2]
[352383035,1739069451727,-500.0,0.0001041,2]
[352383036,1739069451735,-500.0,0.0001041,2]
[352383037,1739069451745,-500.0,0.0001041,2]
[352383038,1739069451753,-500.0,0.0001041,2]
[352383039,1739069451762,-500.0,0.0001041,2]
[352383040,1739069451772,-500.0,0.0001041,2]
[352383041,1739069451781,-500.0,0.0001041,2]
[352383042,1739069451790,-500.0,0.0001041,2]
[352383043,1739069451798,-500.0,0.0001041,2]
[352383044,1739069451807,-521.35759832,0.0001041,2]
[352383045,1739069451816,-500.0,0.0001041,2]
[352383046,1739069451825,-500.0,0.0001041,2]
[352383047,1739069451834,-500.0,0.0001041,2]
[352383048,1739069451843,-500.0,0.0001041,2]
[352383049,1739069451852,-500.0,0.0001041,2]
[352383050,1739069451861,-500.0,0.0001041,2]
[352383051,1739069451870,-313.96885851,0.0001041,2]
[352383052,1739069451880,-500.0,0.0001041,2]
[352383053,1739069451889,-500.0,0.0001041,2]
[352383054,1739069451899,-500.0,0.0001041,2]
[352383055,1739069451910,-500.0,0.0001041,2]
[352383056,1739069451921,-500.0,0.0001041,2]
[352383057,1739069451932,-500.0,0.0001041,2]
[352383058,1739069451941,-500.0,0.0001041,2]
[352383059,1739069451951,-500.0,0.0001041,2]
[352383060,1739069451961,-529.51069476,0.0001041,2]
[352383061,1739069451971,-500.0,0.0001041,2]
[352383062,1739069451980,-500.0,0.0001041,2]
[352383063,1739069451990,-500.0,0.0001041,2]
[352383064,1739069452000,-259.59327409,0.0001041,2]
[352383065,1739069452010,-500.0,0.0001041,2]
[352383066,1739069452020,-239.57194283,0.0001041,2]
[352383067,1739069452029,-500.0,0.0001041,2]
[352383068,1739069452039,-500.0,0.0001041,2]
[352383069,1739069452048,-394.14076538,0.0001041,2]
[352383070,1739069452060,-500.0,0.0001041,2]
[352383071,1739069452070,-500.0,0.0001041,2]
[352383072,1739069452080,-500.0,0.0001041,2]
[352383073,1739069452091,-500.0,0.0001041,2]
[352383074,1739069452102,-500.0,0.0001041,2]
[352383075,1739069452112,-500.0,0.0001041,2]
[352383076,1739069452122,-500.0,0.0001041,2]
[352383077,1739069452132,-500.0,0.0001041,2]
[352383078,1739069452142,-500.0,0.0001041,2]
[352383079,1739069452153,-500.0,0.0001041,2]
[352383080,1739069452162,-579.76,0.0001041,2]
[352383081,1739069452171,-500.0,0.0001041,2]
[352383082,1739069452180,-500.0,0.0001041,2]
[352383083,1739069452190,-500.0,0.0001041,2]
[352383084,1739069452199,-576.76,0.0001041,2]
[352383085,1739069452208,-500.0,0.0001041,2]
[352383086,1739069452217,-585.88,0.0001041,2]
[352383087,1739069452227,-651.15,0.0001041,2]
[352383088,1739069452240,-500.0,0.0001041,2]
[352383089,1739069452249,-500.0,0.0001041,2]
[352383090,1739069452258,-500.0,0.0001041,2]
[352383091,1739069452268,-500.0,0.0001041,2]
[352383092,1739069452280,-500.0,0.0001041,2]
[352383093,1739069452289,-500.0,0.0001041,2]
[352383094,1739069452298,-500.0,0.0001041,2]
[352383095,1739069452308,-792.41,0.0001041,2]
[352383096,1739069452318,-500.0,0.0001041,2]
[352383097,1739069452328,-948.02,0.0001041,2]
[352383098,1739069452337,-500.0,0.0001041,2]
[352383099,1739069452347,-816.74,0.0001041,2]
[352383100,1739069452356,-411.48319192,0.0001041,2]
[352383101,1739069452366,-500.0,0.0001041,2]
[352383102,1739069452376,-500.0,0.0001041,2]
[352383103,1739069452385,-150.0,0.00010432,2]
[352383104,1739069452395,-791.96,0.00010447,2]
[352383105,1739069452404,-788.18,0.00010469,2]
[352383106,1739069452414,-995.5,0.00010469,2]
[352383107,1739069452423,-754.344585,0.00010469,2]
[352383108,1739069452433,-837.418506,0.00010469,2]
[352383109,1739069452442,-571.5,0.00010469,2]
[352383110,1739069452452,-1439.98,0.00010469,2]
[352383111,1739069452462,-1335.02,0.00010469,2]
[352383112,1739069452471,-559.11,0.00010469,2]
[352383113,1739069452480,-1093.73,0.00010469,2]
[352383114,1739069452489,-803.53,0.00010469,2]
[352383115,1739069452498,-1890.81,0.00010469,2]
[352383116,1739069452508,-1559.98,0.00010469,2]
[352383117,1739069452517,-967.4,0.00010469,2]
[352383118,1739069452527,-1029.95,0.00010469,2]
[352383119,1739069452537,-920.97,0.00010469,2]
[352383120,1739069452547,-1867.45,0.00010469,2]
[352383121,1739069452557,-789.25,0.00010469,2]
[352383122,1739069452568,-2997.79623715,0.00010469,2]
[352383123,1739069452585,-747.19376285,0.00010469,2]
[352383124,1739069452594,-1560.02,0.00010469,2]
[352383125,1739069452604,-500.0,0.00010469,2]
[352383126,1739069452613,-736.32,0.00010469,2]
[352383127,1739069452623,-2494.58,0.00010469,2]
[352383128,1739069452633,-947.08,0.00010469,2]
[352383129,1739069452643,-1906.86,0.00010469,2]
[352383130,1739069452652,-1559.78,0.00010469,2]
[352383131,1739069452661,-3359.76,0.00010469,2]
[352383132,1739069452670,-1389.48,0.00010469,2]
[352383133,1739069452680,-1064.16,0.00010469,2]
[352383134,1739069452690,-630.3,0.00010469,2]
[352383135,1739069452699,-999.14,0.00010469,2]
[352383136,1739069452709,-500.0,0.00010469,2]
[352383137,1739069452718,-1578.2,0.00010469,2]
[352383138,1739069452727,-500.0,0.00010469,2]
[352383139,1739069452736,-1129.0,0.00010469,2]
[352383140,1739069452745,-1301.09,0.00010469,2]
[352383141,1739069452754,-1291.18,0.00010469,2]
[352383142,1739069452764,-1876.52,0.00010469,2]
[352383143,1739069452773,-1866.23,0.00010469,2]
[352383144,1739069452783,-2220.41,0.00010469,2]
[352383145,1739069452800,-1564.75,0.00010469,2]
[352383146,1739069452811,-926.11,0.00010469,2]
[352383147,1739069452820,-1329.14,0.00010469,2]
[352383148,1739069452831,-2507.15,0.00010469,2]
[352383149,1739069452842,-587.83,0.00010469,2]
[352383150,1739069452852,-853.77,0.00010469,2]
[352383151,1739069452862,-1628.99,0.00010469,2]
[352383152,1739069452871,-500.0,0.00010469,2]
[352383153,1739069452881,-500.0,0.00010469,2]
[352383154,1739069452891,-954.02,0.00010469,2]
[352383155,1739069452904,-938.82,0.00010469,2]
[352383156,1739069452914,-1573.35,0.00010469,2]
[352383157,1739069452925,-500.0,0.00010469,2]
[352383158,1739069452934,-1805.8,0.00010469,2]
[352383159,1739069452945,-774.74,0.00010469,2]
[352383160,1739069452957,-611.09,0.00010469,2]
[352383161,1739069452968,-500.0,0.00010469,2]
[352383162,1739069452979,-150.0,0.00010475,2]
[352383163,1739069452989,-150.99,0.00010475,2]
[352383164,1739069452999,-12659.2,0.00010475,2]
[352383165,1739069453009,-150.0,0.00010483,2]
[352383166,1739069453020,-152.3747015,0.00010484,2]
[352383167,1739069453030,-500.9821146,0.00010484,2]
[352383168,1739069453040,-161.76740915,0.00010484,2]
[352383169,1739069453050,-152.40003822,0.00010484,2]
[352383170,1739069453061,-161.39721484,0.000105,2]
[352383171,1739069453072,-500.0,0.000105,2]
[352383172,1739069453082,-162.45225784,0.000105,2]
[352383173,1739069453094,-151.71898739,0.000105,2]
[352383174,1739069453104,-151.39679616,0.00010516,2]
[352383175,1739069453115,-151.34221018,0.00010516,2]
[352383176,1739069453124,-151.42286818,0.00010516,2]
[352383177,1739069453136,-500.0,0.00010536,2]
[352383178,1739069453147,-500.0,0.00010536,2]
[352383179,1739069453158,-140.46360181,0.00010536,2]
[352383180,1739069453171,-671.57639819,0.00010536,2]
[352383181,1739069453184,-500.0,0.00010536,2]
[352383182,1739069453194,-446.24097644,0.00010536,2]
[352383183,1739069453204,-650.98,0.00010536,2]
[352383184,1739069453214,-725.66,0.00010536,2]
[352383185,1739069453224,-500.0,0.00010536,2]
[352383186,1739069453234,-626.3,0.00010536,2]
[352383187,1739069453245,-608.52048821,0.00010536,2]
[352383188,1739069453255,-320.76874994,0.00010536,2]
[352383189,1739069453264,-686.17,0.00010536,2]
[352383190,1739069453275,-751.94,0.00010536,2]
[352383191,1739069453284,-4.82603481,0.00010536,2]
[352383192,1739069453300,-495.17396519,0.00010536,2]
[352383193,1739069453311,-504.82603481,0.00010536,2]
[352383194,1739069453323,-304.73396519,0.00010536,2]
[352383195,1739069453332,-500.0,0.00010536,2]
[352383196,1739069453342,-2.54309604,0.00010536,2]
[352383197,1739069453354,-637.90003045,0.00010536,2]
[352383198,1739069453363,-301.0999695,0.00010536,2]
[352383199,1739069453375,-198.9000305,0.00010536,2]
[352383200,1739069453385,-328.87245616,0.00010536,2]
[352383201,1739069453397,-521.85754384,0.00010536,2]
[352383202,1739069453406,-132.98245216,0.00010536,2]
[352383203,1739069453418,-350.32372873,0.00010536,2]
[352383204,1739069453430,-16.69381911,0.00010536,2]
[352383205,1739069453440,-162.24446411,0.00010536,2]
[352383206,1739069453450,-615.33246,0.00010536,2]
[352383207,1739069453861,-500.0,8.962e-05,2]
[352383208,1739069453871,-591.26,9.099e-05,2]
[352383209,1739069453881,-150.0,9.542e-05,2]
[352383210,1739069453891,-150.0,0.00010016,2]
[352383211,1739069453901,-502.31884108,0.00010125,2]
[352383212,1739069453910,-500.0,0.00010125,2]
[352383213,1739069453920,-500.0,0.00010262,2]
[352383214,1739069453930,-195.60754,0.00010536,2]
[352383215,1739069453941,-500.0,0.00010536,2]
[352383216,1739069453951,-500.0,0.00010536,2]
[352383217,1739069453960,-819.57,0.00010536,2]
[352383218,1739069453971,-556.76,0.00010536,2]
[352383219,1739069453980,-881.6,0.00010536,2]
[352383220,1739069453990,-822.99,0.00010536,2]
[352383221,1739069454000,-720.56,0.00010536,2]
[352383222,1739069454010,-695.07,0.00010536,2]
[352383223,1739069454020,-788.71,0.00010536,2]
[352383224,1739069454031,-793.3,0.00010536,2]
[352383225,1739069454041,-467.80417502,0.00010536,2]
[352383226,1739069454051,-500.0,0.00010536,2]
[352383227,1739069454061,-775.16,0.00010536,2]
[352383228,1739069454071,-760.1,0.00010536,2]
[352383229,1739069454080,-646.22,0.00010536,2]
[352383230,1739069454090,-500.0,0.00010536,2]
[352383231,1739069454099,-500.0,0.00010536,2]
[352383232,1739069454110,-1572.53,0.00010536,2]
[352383233,1739069454120,-1155.73,0.00010536,2]
[352383234,1739069454129,-858.34,0.00010536,2]
[352383235,1739069454139,-500.0,0.00010536,2]
[352383236,1739069454149,-500.0,0.00010536,2]
[352383237,1739069454159,-383.3694439,0.00010536,2]
[352383238,1739069454191,-768.1305561,0.00010536,2]
[352383239,1739069454202,-782.41,0.00010536,2]
[352383240,1739069454212,-1084.12,0.00010536,2]
[352383241,1739069454222,-500.0,0.00010536,2]
[352383242,1739069454386,-667.59,0.00010536,2]
[352383243,1739069454422,-2395.35,0.00010536,2]
[352383244,1739069454431,-608.93,0.00010536,2]
[352383245,1739069454441,-1744.39,0.00010536,2]
[352383246,1739069454451,-713.37,0.00010536,2]
[352383247,1739069454460,-1920.7,0.00010536,2]
[352383248,1739069454469,-1775.02,0.00010536,2]
[352383249,1739069454479,-500.0,0.00010536,2]
[352383250,1739069454488,-998.71,0.00010536,2]
[352383251,1739069454498,-674.24,0.00010536,2]
[352383252,1739069454507,-1286.34,0.00010536,2]
[352383253,1739069454516,-785.89,0.00010536,2]
[352383254,1739069454531,-1431.71,0.00010536,2]
[352383255,1739069454545,-2291.65,0.00010536,2]
[352383256,1739069454554,-500.0,0.00010536,2]
[352383257,1739069454565,-531.34,0.00010536,2]
[352383258,1739069454574,-984.4,0.00010536,2]
[352383259,1739069454584,-918.47,0.00010536,2]
[352383260,1739069454595,-500.0,0.00010536,2]
[352383261,1739069454613,-500.0,0.00010536,2]
[352383262,1739069454622,-1681.15,0.00010536,2]
[352383263,1739069454632,-586.82,0.00010536,2]
[352383264,1739069454641,-652.27,0.00010536,2]
[352383265,1739069454651,-906.36,0.00010536,2]
[352383266,1739069454660,-2072.47,0.00010536,2]
[352383267,1739069454670,-545.48,0.00010536,2]
[352383268,1739069454679,-852.61,0.00010536,2]
[352383269,1739069454689,-500.0,0.00010536,2]
[352383270,1739069454698,-1204.52,0.00010536,2]
[352383271,1739069454708,-581.58,0.00010536,2]
[352383272,1739069454717,-500.0,0.00010536,2]
[352383273,1739069454726,-1195.82,0.00010536,2]
[352383274,1739069454735,-500.0,0.00010536,2]
[352383275,1739069454744,-1261.96,0.00010536,2]
[352383276,1739069454754,-1407.94,0.00010536,2]
[352383277,1739069454763,-885.46,0.00010536,2]
[352383278,1739069454773,-4677.96,0.00010537,2]
[352383279,1739069454783,-1113.07,0.00010537,2]
[352383280,1739069454792,-1207.41,0.00010537,2]
[352383281,1739069454801,-1237.76,0.00010537,2]
[352383282,1739069454811,-701.32,0.00010537,2]
[352383283,1739069454820,-2295.98,0.00010537,2]
[352383284,1739069454831,-918.0,0.00010537,2]
[352383285,1739069454841,-974.27,0.00010537,2]
[352383286,1739069454851,-1487.4,0.00010537,2]
[352383287,1739069454861,-1078.29,0.00010537,2]
[352383288,1739069454870,-1542.41,0.00010537,2]
[352383289,1739069454880,-1875.97,0.00010537,2]
[352383290,1739069454890,-500.0,0.00010547,2]
[352383291,1739069454900,-500.0,0.00010547,2]
[352383292,1739069454909,-430.59932826,0.00010547,2]
[352383293,1739069454918,-500.0,0.00010547,2]
[352383294,1739069454927,-500.0,0.00010547,2]
[352383295,1739069454938,-500.0,0.00010547,2]
[352383296,1739069454948,-500.0,0.00010547,2]